fUST/lending_fUST_20250628
["ID","MTS","AMOUNT","RATE_DAILY","PERIOD"]
[368245132,1751071849488,-575.118961,0.00021973,2]
[368245134,1751071849498,-159.2394861,0.00021973,2]
[368245136,1751071849507,-158.5828546,0.00021973,2]
[368245138,1751071849517,-497.0,0.00021979,4]
[368245140,1751071849527,-121822.94,0.00022,7]
[368245142,1751071849535,-9152.01,0.00022,7]
[368245144,1751071849544,-847.04181546,0.00022,7]
[368245146,1751071849554,-12562.41216491,0.00022,7]
[368245148,1751071849563,-213.75309343,0.00022,7]
[368245150,1751071849572,-153.0,0.00022,2]
[368245152,1751071849582,-153.0,0.00022,2]
[368245154,1751071849592,-575.118961,0.00022,2]
[368245156,1751071849601,-575.118961,0.00022,2]
[368245158,1751071849610,-575.118961,0.00022,2]
[368245160,1751071849621,-153.0,0.00022,2]
[368245162,1751071849630,-318.2515047,0.00022,2]
[368245164,1751071849640,-177.4788171,0.00022,2]
[368245166,1751071849650,-575.118961,0.00022,2]
[368245168,1751071849660,-153.0,0.00022,2]
[368245170,1751071849669,-177.4788171,0.00022,2]
[368245172,1751071849678,-507.7873729,0.00022,2]
[368245174,1751071849688,-575.118961,0.00022,2]
[368245176,1751071849697,-575.118961,0.00022,2]
[368245178,1751071849707,-153.0,0.00022,2]
[368245180,1751071849716,-177.4788171,0.00022,2]
[368245182,1751071849725,-1475.38052211,0.00022007,2]
[368245184,1751071849735,-295.64573514,0.00022042,2]
[368245186,1751071849744,-168.0,0.00022052,2]
[368245188,1751071849753,-8969.30636885,0.00022072,6]
[368245190,1751071849762,-155.01070377,0.00022082,2]
[368245192,1751071849771,-155.01070379,0.00022082,2]
[368245194,1751071849780,-155.01070379,0.00022082,2]
[368245196,1751071849789,-155.01070379,0.00022082,2]
[368245198,1751071849799,-155.01070379,0.00022082,2]
[368245200,1751071849808,-1000.0,0.00022117,2]
[368245202,1751071849817,-500.0,0.00022119,2]
[368245204,1751071849828,-500.0,0.00022119,2]
[368245206,1751071849837,-1000.0,0.00022119,2]
[368245208,1751071849846,-168.0,0.00022126,2]
[368245210,1751071849855,-168.0,0.00022156,2]
[368245212,1751071849865,-336.00383614,0.0002216,2]
[368245214,1751071849874,-1000.0,0.00022163,2]
[368245216,1751071849883,-1000.0,0.00022163,2]
[368245218,1751071849892,-500.0,0.00022165,2]
[368245220,1751071849901,-530.41482671,0.00022165,2]
[368245222,1751071849911,-1000.0,0.00022165,2]
[368245224,1751071849921,-1000.0,0.00022165,2]
[368245226,1751071849931,-1000.0,0.00022165,2]
[368245228,1751071849940,-1000.0,0.00022165,2]
[368245230,1751071849949,-1000.0,0.00022165,2]
[368245232,1751071849959,-500.0,0.00022165,2]
[368245234,1751071849968,-500.0,0.00022176,2]
[368245235,1751071849977,-215.0738,0.00022183,2]
[368245238,1751071849987,-460.0,0.00022191,2]
[368245239,1751071849998,-460.0,0.00022191,2]
[368245241,1751071850007,-635.12,0.00022191,2]
[368245244,1751071850019,-500.0,0.00022191,2]
[368245245,1751071850029,-460.0,0.00022191,2]
[368245247,1751071850038,-460.0,0.00022191,2]
[368245248,1751071850048,-605.37,0.00022191,2]
[368245250,1751071850057,-509.55,0.00022191,2]
[368245252,1751071850066,-460.0,0.00022191,2]
[368245254,1751071850075,-684.75,0.00022191,2]
[368245256,1751071850085,-460.0,0.00022191,2]
[368245258,1751071850094,-460.0,0.00022191,2]
[368245260,1751071850105,-2502.6,0.00022191,2]
[368245262,1751071850115,-460.0,0.00022191,2]
[368245264,1751071850124,-547.46,0.00022191,2]
[368245266,1751071850133,-503.3,0.00022191,2]
[368245268,1751071850143,-1275.5,0.00022191,2]
[368245270,1751071850154,-1663.29,0.00022191,2]
[368245272,1751071850163,-1932.64,0.00022191,2]
[368245274,1751071850173,-460.0,0.00022191,2]
[368245276,1751071850182,-460.0,0.00022191,2]
[368245278,1751071850192,-460.0,0.00022191,2]
[368245280,1751071850205,-701.64,0.00022191,2]
[368245282,1751071850215,-592.55,0.00022191,2]
[368245284,1751071850224,-460.0,0.00022191,2]
[368245286,1751071850234,-460.0,0.00022191,2]
[368245288,1751071850245,-594.21,0.00022191,2]
[368245290,1751071850254,-1021.41,0.00022191,2]
[368245292,1751071850263,-2590.38,0.00022191,2]
[368245294,1751071850273,-766.04,0.00022191,2]
[368245296,1751071850282,-694.92,0.00022191,2]
[368245298,1751071850292,-460.0,0.00022191,2]
[368245300,1751071850302,-460.0,0.00022191,2]
[368245301,1751071850312,-331.6216926,0.00022191,2]
[368245303,1751071850322,-2284.01,0.00022191,2]
[368245305,1751071850332,-2585.72,0.00022191,2]
[368245307,1751071850341,-3694.73,0.00022191,2]
[368245309,1751071850350,-1949.36,0.00022191,2]
[368245310,1751071850361,-460.0,0.00022191,2]
[368245313,1751071850371,-460.0,0.00022191,2]
[368245315,1751071850382,-460.0,0.00022191,2]
[368245317,1751071850391,-2567.2,0.00022191,2]
[368245319,1751071850400,-460.0,0.00022191,2]
[368245321,1751071850410,-460.0,0.00022191,2]
[368245323,1751071850419,-873.89,0.00022191,2]
[368245324,1751071850429,-460.0,0.00022191,2]
[368245326,1751071850438,-724.21,0.00022191,2]
[368245328,1751071850448,-1304.39,0.00022191,2]
[368245330,1751071850457,-1634.51,0.00022191,2]
[368245332,1751071850467,-4221.39,0.00022191,2]
[368245334,1751071850476,-460.0,0.00022191,2]
[368245336,1751071850486,-460.0,0.00022191,2]
[368245338,1751071850495,-1315.17,0.00022191,2]
[368245340,1751071850504,-649.63,0.00022191,2]
[368245342,1751071850513,-595.82,0.00022191,2]
[368245344,1751071850522,-973.25,0.00022191,2]
[368245346,1751071850532,-485.74,0.00022191,2]
[368245348,1751071850541,-500.0,0.00022191,18]
[368245350,1751071850551,-1249.12,0.00022191,2]
[368245352,1751071850559,-1581.06,0.00022191,2]
[368245354,1751071850569,-460.0,0.00022191,2]
[368245356,1751071850579,-460.0,0.00022191,2]
[368245357,1751071850588,-2442.26,0.00022191,2]
[368245359,1751071850598,-587.0,0.00022211,2]
[368245361,1751071850607,-1175.0,0.00022234,2]
[368245363,1751071850617,-3088.88,0.000223,2]
[368245365,1751071850626,-8969.30636885,0.00022314,7]
[368245367,1751071850636,-497.0,0.00022316,4]
[368245370,1751071850645,-1175.0,0.00022356,2]
[368245371,1751071850655,-744.0,0.00022428,2]
[368245373,1751071850664,-460.0,0.00022465,2]
[368245375,1751071850673,-300.65952786,0.00022465,2]
[368245377,1751071850682,-635.12,0.00022465,2]
[368245379,1751071850692,-500.0,0.00022465,2]
[368245381,1751071850701,-200.46652596,0.00022465,2]
[368245383,1751071850711,-460.0,0.00022465,2]
[368245385,1751071850720,-605.37,0.00022465,2]
[368245387,1751071850729,-509.55,0.00022465,2]
[368245389,1751071850739,-460.0,0.00022465,2]
[368245391,1751071850748,-684.75,0.00022465,2]
[368245393,1751071850759,-460.0,0.00022465,2]
[368245395,1751071850769,-460.0,0.00022465,2]
[368245397,1751071850778,-2502.6,0.00022465,2]
[368245399,1751071850787,-460.0,0.00022465,2]
[368245401,1751071850796,-547.46,0.00022465,2]
[368245403,1751071850806,-503.3,0.00022465,2]
[368245405,1751071850815,-1275.5,0.00022465,2]
[368245407,1751071850825,-1663.29,0.00022465,2]
[368245409,1751071850834,-1932.64,0.00022465,2]
[368245412,1751071850844,-460.0,0.00022465,2]
[368245414,1751071850855,-460.0,0.00022465,2]
[368245416,1751071850864,-460.0,0.00022465,2]
[368245418,1751071850873,-701.64,0.00022465,2]
[368245420,1751071850883,-592.55,0.00022465,2]
[368245422,1751071850892,-460.0,0.00022465,2]
[368245423,1751071850901,-460.0,0.00022465,2]
[368245425,1751071850910,-594.21,0.00022465,2]
[368245426,1751071850918,-1021.41,0.00022465,2]
[368245427,1751071850928,-766.04,0.00022465,2]
[368245428,1751071850937,-2590.38,0.00022465,2]
[368245429,1751071850946,-694.92,0.00022465,2]
[368245430,1751071850955,-460.0,0.00022465,2]
[368245431,1751071850964,-460.0,0.00022465,2]
[368245432,1751071850973,-2284.01,0.00022465,2]
[368245433,1751071850983,-2585.72,0.00022465,2]
[368245434,1751071850991,-3694.73,0.00022465,2]
[368245435,1751071851000,-1949.36,0.00022465,2]
[368245436,1751071851010,-460.0,0.00022465,2]
[368245437,1751071851019,-460.0,0.00022465,2]
[368245438,1751071851028,-460.0,0.00022465,2]
[368245439,1751071851037,-2567.2,0.00022465,2]
[368245440,1751071851046,-460.0,0.00022465,2]
[368245441,1751071851054,-460.0,0.00022465,2]
[368245442,1751071851063,-873.89,0.00022465,2]
[368245443,1751071851072,-460.0,0.00022465,2]
[368245444,1751071851081,-724.21,0.00022465,2]
[368245445,1751071851090,-1304.39,0.00022465,2]
[368245446,1751071851099,-1634.51,0.00022465,2]
[368245448,1751071851108,-4221.39,0.00022465,2]
[368245450,1751071851118,-460.0,0.00022465,2]
[368245452,1751071851128,-558.17438201,0.00022465,2]
[368245454,1751071851137,-1315.17,0.00022465,2]
[368245456,1751071851146,-649.63,0.00022465,2]
[368245458,1751071851155,-595.82,0.00022465,2]
[368245460,1751071851165,-973.25,0.00022465,2]
[368245462,1751071851174,-485.74,0.00022465,2]
[368245464,1751071851183,-1249.12,0.00022465,2]
[368245466,1751071851192,-1581.06,0.00022465,2]
[368245468,1751071851204,-460.0,0.00022465,2]
[368245470,1751071851214,-460.0,0.00022465,2]
[368245472,1751071851222,-2442.26,0.00022465,2]
[368245474,1751071851231,-168.0,0.00022517,2]
[368245476,1751071851241,-634.30227546,0.00022521,2]
[368245477,1751071851250,-1001.08000748,0.00022521,2]
[368245479,1751071851259,-567.61125249,0.00022521,2]
[368245481,1751071851268,-1000.0,0.00022521,2]
[368245483,1751071851278,-1000.0,0.00022521,2]
[368245486,1751071851288,-1200.0,0.00022521,2]
[368245488,1751071851297,-1000.0,0.00022521,2]
[368245490,1751071851306,-500.0,0.00022521,2]
[368245492,1751071851316,-168.0,0.00022523,2]
[368245494,1751071851325,-264214.42504376,0.00022554,2]
[368245507,1751071851438,-766.0156315,0.00022554,2]
[368245509,1751071851450,-4746.40369109,0.00022554,2]
[368245511,1751071851461,-1601.06569073,0.00022554,2]
[368245513,1751071851472,-9646.70419172,0.00022554,2]
[368245515,1751071851484,-9636.21941732,0.00022554,2]
[368245518,1751071851496,-2448.31875038,0.00022554,2]
[368245520,1751071851507,-2750.73635981,0.00022554,2]
[368245522,1751071851518,-2061.57370036,0.00022554,2]
[368245524,1751071851530,-644.33175654,0.00022554,2]
[368245546,1751071851728,-237.27278617,0.00019178,2]
[368245548,1751071851737,-460.0,0.00019178,2]
[368245550,1751071851746,-460.0,0.0002,2]
[368245552,1751071851756,-460.0,0.00020273,2]
[368245554,1751071851765,-460.0,0.00020547,2]
[368245556,1751071851774,-294.11639537,0.00020821,2]
[368245558,1751071851786,-165.88360463,0.00020821,2]
[368245560,1751071851795,-341.93344753,0.00021095,2]
[368245562,1751071851807,-118.06655247,0.00021095,2]
[368245564,1751071851816,-460.0,0.00021369,2]
[368245567,1751071851826,-232.20510847,0.00021643,2]
[368245569,1751071851839,-227.79489153,0.00021643,2]
[368245571,1751071851848,-460.0,0.00021917,2]
[368245573,1751071851857,-677.49509429,0.00022554,2]
[368245575,1751071851869,-163414.55071287,0.00022554,2]
[368245577,1751071851880,-7519.56825467,0.00022554,2]
[368245586,1751071851952,-460.0,0.00019452,2]
[368245588,1751071851961,-460.0,0.00019726,2]
[368245590,1751071851970,-460.0,0.0002,2]
[368245592,1751071851979,-460.0,0.00020273,2]
[368245594,1751071851988,-460.0,0.00020547,2]
[368245596,1751071851999,-460.0,0.00020821,2]
[368245597,1751071852008,-313.08,0.00021095,2]
[368245599,1751071852017,-575.118961,0.00022,2]
[368245602,1751071852026,-460.0,0.00022191,2]
[368245604,1751071852036,-460.0,0.00022465,2]
[368245605,1751071852045,-4784.69777753,0.00022554,2]
[368245608,1751071852058,-4885.35450368,0.00022554,2]
[368245667,1751071852613,-460.0,0.00019178,2]
[368245669,1751071852623,-460.0,0.00019178,2]
[368245671,1751071852633,-460.0,0.00019178,2]
[368245673,1751071852642,-460.0,0.00019178,2]
[368245675,1751071852652,-460.0,0.00019178,2]
[368245677,1751071852661,-460.0,0.00019452,2]
[368245679,1751071852670,-218.09063573,0.00019452,2]
[368245681,1751071852680,-460.0,0.00019452,2]
[368245683,1751071852690,-460.0,0.00019726,2]
[368245685,1751071852700,-460.0,0.00019726,2]
[368245687,1751071852709,-365.86348035,0.0002,2]
[368245690,1751071852724,-94.13651965,0.0002,2]
[368245692,1751071852733,-460.0,0.00020273,2]
[368245694,1751071852742,-460.0,0.00020547,2]
[368245696,1751071852751,-460.0,0.00020821,2]
[368245698,1751071852760,-460.0,0.00021095,2]
[368245700,1751071852769,-152.636,0.00021896,2]
[368245702,1751071852778,-7521.01204325,0.00022554,2]
[368249752,1751072829174,331.82479,0.00013699,2]
[368249754,1751072945114,-160.0,0.00018448,2]
[368249755,1751072945135,-1200.0,0.00018449,2]
[368249756,1751072945155,-1200.0,0.00018449,2]
[368249757,1751072945175,-300.0,0.00018449,2]
[368249758,1751072945194,-24900.0,0.0001845,2]
[368249759,1751072945213,-346.06917785,0.000189,2]
[368249760,1751072945233,-348.43961645,0.00019077,2]
[368249761,1751072945252,-500.0,0.00019078,2]
[368249762,1751072945271,-500.0,0.00019078,2]
[368249763,1751072945290,-500.0,0.00019078,2]
[368249764,1751072945310,-467.94251757,0.00019078,2]
[368249765,1751072945336,-800.14,0.00019168,3]
[368249766,1751072945372,-500.0,0.00019177,2]
[368249767,1751072945394,-482.98131277,0.00019177,2]
[368249768,1751072945416,-500.0,0.00019177,2]
[368249769,1751072945437,-500.0,0.00019177,2]
[368249770,1751072945457,-222.78559439,0.00019178,2]
[368249771,1751072945476,-460.0,0.00019178,2]
[368249772,1751072945496,-460.0,0.00019178,2]
[368249773,1751072945725,-467.51395587,0.00019178,2]
[368249774,1751072945746,-460.0,0.00019178,2]
[368249775,1751072945769,-460.0,0.00019178,2]
[368249776,1751072945788,-460.0,0.00019178,2]
[368249777,1751072945809,-245.14961304,0.00019178,2]
[368249778,1751072945828,-460.0,0.00019178,2]
[368249779,1751072945849,-460.0,0.00019178,2]
[368249780,1751072945870,-391.0509089,0.00019178,2]
[368249781,1751072945890,-460.0,0.00019178,2]
[368249782,1751072945911,-460.0,0.00019178,2]
[368249783,1751072945931,-460.0,0.00019178,2]
[368249784,1751072945952,-461.69323304,0.00019178,2]
[368249785,1751072945972,-460.0,0.00019178,2]
[368249786,1751072945992,-460.0,0.00019178,2]
[368249787,1751072946012,-460.0,0.00019178,2]
[368249788,1751072946033,-460.0,0.00019178,2]
[368249789,1751072946055,-460.0,0.00019178,2]
[368249790,1751072946074,-461.31202453,0.00019178,2]
[368249791,1751072946096,-288.64732531,0.00019178,2]
[368249792,1751072946116,-460.0,0.00019178,2]
[368249793,1751072946138,-460.0,0.00019178,2]
[368249794,1751072946158,-460.0,0.00019178,2]
[368249795,1751072946178,-460.0,0.00019178,2]
[368249796,1751072946344,-460.0,0.00019178,2]
[368249797,1751072946366,-465.5847148,0.00019178,2]
[368249798,1751072946386,-460.0,0.00019178,2]
[368249799,1751072946406,-460.0,0.00019178,2]
[368249800,1751072946425,-460.0,0.00019178,2]
[368249801,1751072946444,-460.0,0.00019178,2]
[368249802,1751072946464,-381.22105681,0.00019178,2]
[368249803,1751072946483,-460.0,0.00019178,2]
[368249804,1751072946503,-460.0,0.00019178,2]
[368249805,1751072946525,-460.0,0.00019178,2]
[368249806,1751072946544,-460.0,0.00019178,2]
[368249807,1751072946565,-460.0,0.00019178,2]
[368249808,1751072946584,-535.03417453,0.00019178,2]
[368249809,1751072946604,-460.0,0.00019178,2]
[368249810,1751072946625,-460.0,0.00019178,2]
[368249811,1751072946645,-460.0,0.00019178,2]
[368249812,1751072946665,-460.0,0.00019178,2]
[368249813,1751072946686,-460.0,0.00019178,2]
[368249814,1751072946709,-460.0,0.00019178,2]
[368249815,1751072946729,-460.0,0.00019178,2]
[368249816,1751072946750,-460.0,0.00019178,2]
[368249817,1751072946772,-460.0,0.00019178,2]
[368249818,1751072946793,-347.85384599,0.00019178,2]
[368249819,1751072946813,-460.0,0.00019178,2]
[368249820,1751072946834,-444.34554033,0.00019178,2]
[368249821,1751072946854,-402.13269702,0.00019178,2]
[368249822,1751072946877,-460.0,0.00019178,2]
[368249823,1751072946898,-460.0,0.00019178,2]
[368249824,1751072946920,-460.0,0.00019178,2]
[368249825,1751072946940,-815.36,0.00019178,2]
[368249826,1751072946960,-460.0,0.00019178,2]
[368249827,1751072946981,-460.0,0.00019178,2]
[368249828,1751072947001,-460.0,0.00019178,2]
[368249829,1751072947022,-460.0,0.00019178,2]
[368249830,1751072947042,-460.0,0.00019178,2]
[368249831,1751072947061,-450.52023403,0.00019178,2]
[368249832,1751072947081,-460.0,0.00019178,2]
[368249833,1751072947101,-460.0,0.00019178,2]
[368249834,1751072947120,-460.0,0.00019178,2]
[368249835,1751072947141,-460.0,0.00019178,2]
[368249836,1751072947163,-460.0,0.00019178,2]
[368249837,1751072947183,-460.0,0.00019178,2]
[368249838,1751072947204,-460.0,0.00019178,2]
[368249839,1751072947223,-460.0,0.00019178,2]
[368249840,1751072947244,-460.0,0.00019178,2]
[368249841,1751072947263,-460.0,0.00019178,2]
[368249842,1751072947284,-460.0,0.00019178,2]
[368249843,1751072947304,-460.0,0.00019178,2]
[368249844,1751072947323,-460.0,0.00019178,2]
[368249845,1751072947343,-460.0,0.00019178,2]
[368249846,1751072947362,-460.0,0.00019178,2]
[368249847,1751072947382,-460.0,0.00019178,2]
[368249848,1751072947401,-460.0,0.00019178,2]
[368249849,1751072947421,-460.0,0.00019178,2]
[368249850,1751072947441,-460.0,0.00019178,2]
[368249851,1751072947461,-460.0,0.00019178,2]
[368249852,1751072947480,-460.0,0.00019178,2]
[368249853,1751072947499,-501.48619889,0.00019178,2]
[368249854,1751072947520,-460.0,0.00019178,2]
[368249855,1751072947539,-750.3,0.00019178,2]
[368249856,1751072947559,-460.0,0.00019178,2]
[368249857,1751072947579,-460.0,0.00019178,2]
[368249858,1751072947599,-460.0,0.00019178,2]
[368249859,1751072947621,-460.0,0.00019178,2]
[368249860,1751072947643,-460.0,0.00019178,2]
[368249861,1751072947665,-460.0,0.00019178,2]
[368249862,1751072947686,-460.0,0.00019178,2]
[368249863,1751072947710,-460.0,0.00019178,2]
[368249864,1751072947732,-460.0,0.00019178,2]
[368249865,1751072947752,-608.85,0.00019178,2]
[368249866,1751072947774,-306.71362308,0.00019178,2]
[368249867,1751072947795,-460.0,0.00019178,2]
[368249868,1751072947819,-460.0,0.00019178,2]
[368249869,1751072947839,-590.4,0.00019178,2]
[368249870,1751072947861,-460.0,0.00019178,2]
[368249871,1751072947883,-460.0,0.00019178,2]
[368249872,1751072947905,-240.64718336,0.00019178,2]
[368249873,1751072947926,-460.0,0.00019178,2]
[368249874,1751072947947,-460.0,0.00019178,2]
[368249875,1751072947968,-1023.52,0.00019178,2]
[368249876,1751072947989,-460.0,0.00019178,2]
[368249877,1751072948013,-460.0,0.00019178,2]
[368249878,1751072948033,-460.0,0.00019178,2]
[368249879,1751072948054,-460.0,0.00019178,2]
[368249880,1751072948075,-283.92592939,0.00019178,2]
[368249881,1751072948211,-176.07407061,0.00019178,2]
[368249882,1751072948234,-460.0,0.00019178,2]
[368249883,1751072948255,-460.0,0.00019178,2]
[368249884,1751072948277,-47.14709272,0.00019178,2]
[368249885,1751072950129,-243.89987363,0.00019178,2]
[368249886,1751072950151,-460.0,0.00019178,2]
[368249887,1751072950170,-460.0,0.00019178,2]
[368249888,1751072950192,-270.94949962,0.00019178,2]
[368249889,1751072950214,-702.02,0.00019178,2]
[368249890,1751072950234,-460.0,0.00019178,2]
[368249891,1751072950255,-460.0,0.00019178,2]
[368249892,1751072950274,-460.0,0.00019178,2]
[368249893,1751072950294,-460.0,0.00019178,2]
[368249894,1751072950314,-460.0,0.00019178,2]
[368249895,1751072950335,-1871.06,0.00019178,2]
[368249896,1751072950355,-460.0,0.00019178,2]
[368249897,1751072950376,-460.0,0.00019178,2]
[368249898,1751072950400,-460.0,0.00019178,2]
[368249899,1751072950421,-460.0,0.00019178,2]
[368249900,1751072950443,-659.36,0.00019178,2]
[368249901,1751072950463,-460.0,0.00019178,2]
[368249902,1751072950485,-1713.4,0.00019178,2]
[368249903,1751072950505,-411.13348129,0.00019178,2]
[368249904,1751072950526,-460.0,0.00019178,2]
[368249905,1751072950547,-975.83,0.00019178,2]
[368249906,1751072950568,-460.0,0.00019178,2]
[368249907,1751072950589,-636.39,0.00019178,2]
[368249908,1751072950610,-460.0,0.00019178,2]
[368249909,1751072950631,-513.53,0.00019178,2]
[368249910,1751072950652,-460.0,0.00019178,2]
[368249911,1751072950673,-460.0,0.00019178,2]
[368249912,1751072950692,-460.35116092,0.00019178,2]
[368249913,1751072950716,-460.0,0.00019178,2]
[368249914,1751072950737,-556.74,0.00019178,2]
[368249915,1751072950758,-460.0,0.00019178,2]
[368249916,1751072950778,-460.0,0.00019178,2]
[368249917,1751072950799,-460.0,0.00019178,2]
[368249918,1751072950819,-543.96932528,0.00019178,2]
[368249919,1751072950839,-460.0,0.00019178,2]
[368249920,1751072950859,-460.0,0.00019178,2]
[368249921,1751072950882,-460.0,0.00019178,2]
[368249922,1751072950902,-460.0,0.00019178,2]
[368249923,1751072950924,-460.0,0.00019178,2]
[368249924,1751072950945,-460.0,0.00019178,2]
[368249925,1751072950964,-460.0,0.00019178,2]
[368249926,1751072950984,-460.0,0.00019178,2]
[368249927,1751072951005,-460.0,0.00019178,2]
[368249928,1751072951028,-1624.17,0.00019178,2]
[368249929,1751072951051,-460.0,0.00019178,2]
[368249930,1751072951072,-649.34,0.00019178,2]
[368249931,1751072951092,-500.0,0.00019178,2]
[368249932,1751072951112,-863.24,0.00019178,2]
[368249933,1751072951135,-2379.92,0.00019178,2]
[368249934,1751072951155,-336.22182746,0.00019178,2]
[368249935,1751072951176,-460.0,0.00019178,2]
[368249936,1751072951197,-1981.49,0.00019178,2]
[368249937,1751072951217,-460.0,0.00019178,2]
[368249938,1751072951381,-460.0,0.00019178,2]
[368249939,1751072951403,-460.0,0.00019178,2]
[368249940,1751072951424,-460.0,0.00019178,2]
[368249941,1751072951445,-460.0,0.00019178,2]
[368249942,1751072951466,-790.84,0.00019178,2]
[368249943,1751072951486,-460.0,0.00019178,2]
[368249944,1751072951507,-2724.83,0.00019178,2]
[368249945,1751072951528,-562.1,0.00019178,2]
[368249946,1751072951548,-460.0,0.00019178,2]
[368249947,1751072951569,-460.0,0.00019178,2]
[368249948,1751072951589,-460.0,0.00019178,2]
[368249949,1751072951617,-546.04,0.00019178,2]
[368249950,1751072951638,-460.0,0.00019178,2]
[368249951,1751072951660,-472.10241533,0.00019178,2]
[368249952,1751072951681,-460.0,0.00019178,2]
[368249953,1751072951703,-460.0,0.00019178,2]
[368249954,1751072951724,-632.47,0.00019178,2]
[368249955,1751072951744,-460.0,0.00019178,2]
[368249956,1751072951765,-460.0,0.00019178,2]
[368249957,1751072951785,-460.0,0.00019178,2]
[368249958,1751072951806,-1362.65,0.00019178,2]
[368249959,1751072951829,-1983.99,0.00019178,2]
[368249960,1751072951850,-460.0,0.00019178,2]
[368249961,1751072951872,-460.0,0.00019178,2]
[368249962,1751072951896,-460.0,0.00019178,2]
[368249963,1751072951918,-745.95,0.00019178,2]
[368249964,1751072951940,-4509.11,0.00019178,2]
[368249965,1751072951961,-460.0,0.00019178,2]
[368249966,1751072951982,-2649.6,0.00019178,2]
[368249967,1751072952002,-460.0,0.00019178,2]
[368249968,1751072952022,-460.0,0.00019178,2]
[368249969,1751072952042,-532.39,0.00019178,2]
[368249970,1751072952062,-460.0,0.00019178,2]
[368249971,1751072952082,-460.0,0.00019178,2]
[368249972,1751072952105,-460.0,0.00019178,2]
[368249973,1751072952129,-4260.63,0.00019178,2]
[368249974,1751072952151,-548.37,0.00019178,2]
[368249975,1751072952172,-502.26,0.00019178,2]
[368249976,1751072952194,-885.19,0.00019178,2]
[368249977,1751072952219,-1031.43,0.00019178,2]
[368249978,1751072952243,-460.0,0.00019178,2]
[368249979,1751072952264,-460.0,0.00019178,2]
[368249980,1751072952285,-532.31,0.00019178,2]
[368249981,1751072952306,-460.0,0.00019178,2]
[368249982,1751072952328,-1028.19,0.00019178,2]
[368249983,1751072952348,-2647.1,0.00019178,2]
[368249984,1751072952368,-497.42,0.00019178,2]
[368249985,1751072952389,-2435.39,0.00019178,2]
[368249986,1751072952410,-1372.11,0.00019178,2]
[368249987,1751072952430,-460.0,0.00019178,2]
[368249988,1751072952450,-514.85,0.00019178,2]
[368249989,1751072952471,-835.97,0.00019178,2]
[368249990,1751072952491,-460.0,0.00019178,2]
[368249991,1751072952512,-2961.6,0.00019178,2]
[368249992,1751072952532,-460.0,0.00019178,2]
[368249993,1751072952554,-460.0,0.00019178,2]
[368249994,1751072952574,-460.0,0.00019178,2]
[368249995,1751072952596,-460.0,0.00019178,2]
[368249996,1751072952617,-525.47,0.00019178,2]
[368249997,1751072952637,-547.99322723,0.00019178,2]
[368249998,1751072952658,-460.0,0.00019178,2]
[368249999,1751072952679,-460.0,0.00019178,2]
[368250000,1751072952701,-460.0,0.00019178,2]
[368250001,1751072952723,-460.0,0.00019178,2]
[368250002,1751072952745,-1459.3,0.00019178,2]